[Event "Romanian Team Blitz Open 2022"]
[Site "Sebes"]
[Date "2022.12.04"]
[Round "7.9"]
[White "Miron, Lucian-Costin"]
[Black "Dragomirescu, Robin-Alexandru"]
[Result "1-0"]
[ECO "D02"]
[WhiteElo "2510"]
[BlackElo "2337"]
[Annotator "TA"]
[PlyCount "55"]
[EventDate "2022.12.04"]
[EventType "blitz"]
[EventCountry "ROU"]
[SourceTitle "playchess.com"]
[Source "ChessBase"]
[SourceQuality "1"]
[TimeControl "180+2"]

{[%evp 9,55,14,22,13,81,73,81,75,71,88,94,78,75,79,66,66,100,102,118,112,114,103,113,122,125,130,131,135,197,197,210,176,214,197,266,278,307,310,427,351,566,571,521,551,623,570,1242,1169]} 1. Nf3 {[%emt 0:00:01]} Nc6 {[%emt 0:00:02]} 2. d4 {[%emt 0:00:21]} d5 {[%emt 0:00:01]} 3. g3 {[%emt 0:00:05]} Bg4 {[%emt 0:00:02]} 4. h3 {[%emt 0:00:07]} Bxf3 5. exf3 {[%emt 0:00:01]} Nf6 {[%emt 0:00:19]} 6. Bg2 {[%emt 0:00:02] D02: 1 d4 d5 2 Nf3 sidelines, including 2...Nf6 3 g3 and 2...Nf6 3 Bf4.} e5 {[%emt 0:00:37]} (6... e6 $11 {keeps the balance.}) 7. dxe5 $16 {[%emt 0:00:02]} Nxe5 {[%emt 0:00:01][%cal Bc6e5,Be5c4,Bc4d6][%mdl 32]} 8. O-O {[%emt 0:00:26] [#] Threatens to win with Re1. White is better.} Be7 {[%emt 0:00:03] [#]} 9. Re1 $146 {[%emt 0:00:14]} ({Predecessor:} 9. f4 Nc6 10. Nc3 d4 11. Nb5 O-O 12. c3 d3 13. Be3 a6 14. Nd4 Nxd4 15. Bxd4 {1-0 (40) Araujo Sanchez,J (2256)-Ljukin,S (2362) Chess.com INT 2022}) 9... Nc4 {[%emt 0:00:38]} 10. Qe2 {[%emt 0:00:09]} Qd7 {[%emt 0:00:24][%cal Oe8g8]} 11. b3 {[%emt 0:00:20]} (11. Bd2 {looks sharper.} Qe6 12. Qd3 Qd7 13. Bb4) 11... Nd6 {[%emt 0:00:09][%cal Oe8g8]} 12. Bd2 {[%emt 0:00:01]} Kf8 {[%emt 0:00:14] Black is now going downhill.} 13. Nc3 $36 {[%emt 0:00:11][%mdl 2048] Keeping Black busy.} Re8 {[%emt 0:00:03]} 14. Qd3 {[%emt 0:00:01]} c6 {[%emt 0:00:02]} 15. Be3 {[%emt 0:00:12] White has more active pieces.} b6 {[%emt 0:00:18]} 16. Rad1 {[%emt 0:00:01]} Qf5 {[%emt 0:00:04]} 17. Qd2 {[%emt 0:00:07]} h5 {[%emt 0:00:06]} 18. h4 {[%emt 0:00:03]} g6 {[%emt 0:00:10]} (18... Kg8 $16 {was necessary.} 19. Ne2 Qd7) 19. Ne2 $18 {[%emt 0:00:02]} Kg7 {[%emt 0:00:02]} 20. Kh2 {[%emt 0:00:14]} Qd7 {[%emt 0:00:04]} 21. c4 {[%emt 0:00:06]} dxc4 {[%emt 0:00:06]} (21... Nf5 {was called for.}) 22. bxc4 {[%emt 0:00:01]} Qc8 {[%emt 0:00:07]} 23. Qc3 {[%emt 0:00:02]} Kh7 {[%emt 0:00:11]} 24. Rxd6 {[%emt 0:00:10]} Ng4+ {[%emt 0:00:04]} (24... Bxd6 25. Qxf6 Qe6 26. Qxe6 Rxe6) 25. fxg4 {[%emt 0:00:04] White is clearly winning.} Bxd6 {[%emt 0:00:01]} 26. gxh5 {[%emt 0:00:04]} Qg4 {[%emt 0:00:02]} 27. Qf6 {[%emt 0:00:12][%cal Rf6f7] [#]} Rhf8 {[%emt 0:00:02]} 28. Qxd6 {[%emt 0:00:03] Weighted Error Value: White=0.11 (very precise) /Black=0.43} 1-0

[Event "Romanian Team Blitz Open 2022"]
[Site "Sebes"]
[Date "2022.12.04"]
[Round "7.10"]
[White "Ionescu, Mihai"]
[Black "Filip, Lucian-Ioan"]
[Result "1/2-1/2"]
[ECO "A30"]
[WhiteElo "2243"]
[BlackElo "2370"]
[Annotator "TA"]
[PlyCount "58"]
[EventDate "2022.12.04"]
[EventType "blitz"]
[EventCountry "ROU"]
[SourceTitle "playchess.com"]
[Source "ChessBase"]
[SourceQuality "1"]
[TimeControl "180+2"]

{[%evp 22,58,28,25,50,18,27,20,25,23,16,1,19,6,25,0,25,0,48,6,44,0,25,14,13,20,16,10,4,0,0,0,0,0,0,0,78,0,64]} 1. Nf3 {[%emt 0:00:04]} Nf6 {[%emt 0:00:01]} 2. c4 {[%emt 0:00:02]} c5 {[%emt 0:00:03]} 3. Nc3 {[%emt 0:00:05]} e6 {[%emt 0:00:01]} 4. g3 {[%emt 0:00:05]} b6 {[%emt 0:00:01]} 5. Bg2 {[%emt 0:00:02]} Bb7 {[%emt 0:00:01]} 6. O-O {[%emt 0:00:03]} a6 {[%emt 0:00:02]} 7. b3 {[%emt 0:00:04]} Be7 {[%emt 0:00:03]} 8. Bb2 {[%emt 0:00:02]} O-O {[%emt 0:00:02]} 9. e3 {[%emt 0:00:02]} d6 {[%emt 0:00:04]} 10. Qe2 {[%emt 0:00:03]} Nbd7 {[%emt 0:00:10]} 11. Rfd1 {[%emt 0:00:02]} Qc7 {[%emt 0:00:08]} 12. Rac1 {[%emt 0:00:08]} Rac8 {[%emt 0:00:03] A30: Symmetrical English: Double Fianchetto and Hedgehog.} 13. d4 {[%emt 0:00:02]} Ne4 {[%emt 0:00:13]} 14. Nxe4 {[%emt 0:00:18]} Bxe4 {[%emt 0:00:02] [#]} 15. Ne1 $146 {[%emt 0:00:15][%cal Bf3e1,Be1g2,Bg2f4][%mdl 32]} ({Predecessor:} 15. Nd2 Bxg2 16. Kxg2 Qb7+ 17. Qf3 Qxf3+ 18. Kxf3 Rfd8 19. dxc5 dxc5 20. Ne4 Nf6 21. Bxf6 Bxf6 {½-½ (57) Jantzen,H (2128)-Gomolla,P (2201) Lueneburg 2015}) 15... Bxg2 {[%emt 0:00:03]} 16. Nxg2 {[%emt 0:00:03]} Bf6 {[%emt 0:00:55]} 17. Nf4 {[%emt 0:00:33]} g6 {[%emt 0:00:01]} 18. Rd2 {[%emt 0:00:20]} Rfd8 {[%emt 0:00:08]} 19. Rcd1 {[%emt 0:00:02]} Bg7 {[%emt 0:00:03]} (19... cxd4 $11 20. Bxd4 d5) 20. h4 {[%emt 0:00:22]} h5 {[%emt 0:00:12]} 21. Qf3 {[%emt 0:00:07]} b5 {[%emt 0:00:38]} 22. dxc5 {[%emt 0:00:06]} Nxc5 {[%emt 0:00:12]} 23. Bxg7 {[%emt 0:00:04]} Kxg7 {[%emt 0:00:01]} 24. cxb5 {[%emt 0:00:23]} axb5 {[%emt 0:00:00]} 25. Nd3 {[%emt 0:00:06]} Nd7 {[%emt 0:00:15]} 26. Rc1 {[%emt 0:00:06]} Qa5 {[%emt 0:00:04]} 27. Rdc2 {[%emt 0:00:04]} Rxc2 {[%emt 0:00:03]} 28. Rxc2 {[%emt 0:00:01]} d5 {[%emt 0:00:18]} (28... Nc5 $11 29. Qd1 (29. Nxc5 Qe1+ 30. Kg2 dxc5 $11) 29... Nd7) 29. Kg2 {[%emt 0:00:07]} ({White should play} 29. Qf4 $16) 29... Qb6 {[%emt 0:00:07] Weighted Error Value: White=0.16 (very precise) /Black=0.22 (precise)} (29... e5 $11 30. Qe2 (30. Qxd5 $2 {too greedy.} Nf6 $19) 30... Re8) 1/2-1/2

[Event "Romanian Team Blitz Open 2022"]
[Site "Sebes"]
[Date "2022.12.04"]
[Round "7.11"]
[White "Secheres, Adrian-Simion"]
[Black "Dragomirescu, Calin"]
[Result "1/2-1/2"]
[ECO "E74"]
[WhiteElo "2365"]
[BlackElo "1971"]
[Annotator "TA"]
[PlyCount "72"]
[EventDate "2022.12.04"]
[EventType "blitz"]
[EventCountry "ROU"]
[SourceTitle "playchess.com"]
[Source "ChessBase"]
[SourceQuality "1"]
[TimeControl "180+2"]

{[%evp 19,72,27,26,13,20,16,48,27,186,192,191,115,163,189,197,53,47,56,321,123,171,161,166,102,133,24,202,204,198,194,180,179,247,210,192,134,138,125,165,162,226,226,227,133,134,138,973,44,160,0,962,958,711,132,121]} 1. d4 {[%emt 0:00:02]} Nf6 {[%emt 0:00:00]} 2. c4 {[%emt 0:03:04]} g6 3. Nc3 {[%emt 0:00:02]} Bg7 4. e4 {[%emt 0:00:00]} d6 {[%emt 0:00:02]} 5. Be2 {[%emt 0:00:00]} O-O {[%emt 0:00:02]} 6. Bg5 {[%emt 0:00:00]} c5 {[%emt 0:00:03]} 7. d5 {[%emt 0:00:00]} h6 {[%emt 0:00:00]} 8. Bf4 {[%emt 0:00:00]} e6 {[%emt 0:00:01]} 9. dxe6 {[%emt 0:00:00]} Bxe6 {[%emt 0:00:02]} 10. Bxd6 {[%emt 0:00:00]} Re8 {[%emt 0:00:01]} 11. e5 {[%emt 0:00:00] E74: King's Indian: Averbakh Variation: 6...c5.} Nfd7 {[%emt 0:00:09]} 12. f4 {[%emt 0:00:00] With the idea Nf3.} Nc6 {[%emt 0:00:10]} 13. Nf3 {[%emt 0:00:00] [#] aiming for 0-0. White is slightly better.} Bg4 $146 {[%emt 0:00:20]} (13... g5 $11) ({Predecessor:} 13... f6 14. exf6 Nxf6 15. O-O Ng4 16. Bxc5 Qa5 17. Bf2 Rad8 18. Qe1 Nxf2 19. Rxf2 Nd4 {½-½ (31) Dunlop,G (2535)-Tauber,H (2527) GER email 2018}) 14. O-O $18 {[%emt 0:00:00]} f6 {[%emt 0:00:12][%cal Rf6e5]} 15. h3 {[%emt 0:00:00]} (15. Nb5 $18) 15... Bxf3 {[%emt 0:00:10]} (15... Bf5 $16) 16. Bxf3 {[%emt 0:00:00]} (16. gxf3 fxe5 17. fxe5 Ncxe5 $15) 16... fxe5 {[%emt 0:00:08]} 17. Bxc6 {[%emt 0:00:00]} (17. Nb5 $18) 17... bxc6 $14 {[%emt 0:00:02]} 18. f5 {[%emt 0:00:00]} Nb6 $2 {[%emt 0:00:28][%mdl 8192]} (18... gxf5 $14 19. Qf3 (19. Rxf5 Qh4 $14) 19... Qf6) 19. Bxc5 $2 {[%emt 0:00:00]} (19. fxg6 e4 $16) (19. Ne4 $18 {and White stays clearly on top.} Nd7 20. Qf3 (20. Nxc5 gxf5 21. Rxf5 Nxc5 $16) (20. Bxc5 gxf5 21. Rxf5 Nxc5 $11)) 19... Qxd1 {[%emt 0:00:07]} (19... gxf5 $16 20. Rxf5 Qxd1+ 21. Rxd1 Nxc4) 20. Raxd1 $18 {[%emt 0:00:00] f6 is the strong threat.} gxf5 {[%emt 0:00:06]} 21. Rxf5 {[%emt 0:00:00]} (21. b3 $1 $18) 21... e4 {[%emt 0:00:10]} 22. Bd4 {[%emt 0:00:00] White is much more active.} (22. Rf4 $1 $16) 22... Rad8 $2 {[%emt 0:00:15]} (22... Nxc4 $11 {and Black has nothing to worry.} 23. Rf2 Rad8 24. Bxg7 (24. Bxa7 Rd3 $11) 24... Rxd1+ 25. Nxd1 Kxg7) 23. Bxg7 {[%emt 0:00:00]} Rxd1+ 24. Nxd1 {[%emt 0:00:00]} Kxg7 {[%emt 0:00:05][%mdl 4096] Endgame KRN-KRN} 25. Ne3 {[%emt 0:00:00]} Rd8 {[%emt 0:00:09]} (25... Na4 $142 26. b3 Nc3) 26. Re5 {[%emt 0:00:00]} Rd2 {[%emt 0:00:01]} 27. b3 {[%emt 0:00:00]} (27. Rxe4 $18 {And now Re7+ would win.} Kf7 28. Rf4+ Kg6 29. Rf2) 27... Rxa2 $16 {[%emt 0:00:04]} 28. Rxe4 {[%emt 0:00:00]} Rb2 {[%emt 0:00:07]} 29. Re7+ {[%emt 0:00:08]} Kg6 {[%emt 0:00:01]} (29... Kf8 {was necessary.} 30. Rxa7 Rxb3) 30. Rc7 {[%emt 0:00:04]} (30. Rxa7 Rxb3 31. Kf2 c5) 30... Rxb3 {[%emt 0:00:06]} 31. Rxc6+ {[%emt 0:00:01]} ({White should play} 31. Kf2 $1 $18) 31... Kg5 {[%emt 0:00:11]} 32. Kf2 {[%emt 0:00:01] Black must now prevent g3.} a5 $2 {[%emt 0:00:09][%mdl 8192]} (32... Kf4 $16) 33. Rc5+ $2 {[%emt 0:00:20]} (33. h4+ $18 Kh5 34. g4+ Kxh4 35. Rc5 (35. Rxh6+ Kg5 $14) 35... Rxe3 36. Kxe3 Kxg4 37. Rc6 (37. Rxa5 {gets mated.} Nxc4+ 38. Ke4 Nxa5 39. Ke3 h5 40. Kf2 Nc4 41. Kf1 h4 42. Kf2 h3 43. Kf1 Kg3 44. Ke2 Kf4 45. Kf2 Ne3 46. Kg1 Kg3 47. Kh1 Ng4 48. Kg1 h2+ 49. Kf1 h1=Q+ 50. Ke2 Qd5 51. Ke1 Kf3 52. Kf1 Qd1#)) 33... Kg6 {[%emt 0:00:04]} (33... Kf4 $14) 34. Rc6+ $2 {[%emt 0:00:10]} ({Not} 34. Rxa5 Rxe3 $1 35. Ra6 Re6 $11) (34. Rc7 $16) 34... Kg5 $1 $18 {[%emt 0:00:03]} 35. h4+ {[%emt 0:00:01]} Kf4 {[%emt 0:00:03] [#]} 36. Rf6+ $2 {[%emt 0:00:12]} ({And not} 36. Rxh6 Rb2+ 37. Kg1 Kxe3 $17) (36. Rxb6 $1 $18 {[%mdl 512]} Rd3 (36... a4 37. Rxb3) 37. Rf6+ Ke5 38. Rxh6) 36... Ke4 {[%emt 0:00:03] Weighted Error Value: White=1.06/Black=0.56} 1/2-1/2

[Event "Romanian Team Blitz Open 2022"]
[Site "Sebes"]
[Date "2022.12.04"]
[Round "7.12"]
[White "Santimbrean, Bogdan-Iacob"]
[Black "Nastore, Pavel-Alexandru"]
[Result "0-1"]
[ECO "B90"]
[WhiteElo "1179"]
[BlackElo "2218"]
[Annotator "TA"]
[PlyCount "58"]
[EventDate "2022.12.04"]
[EventType "blitz"]
[EventCountry "ROU"]
[SourceTitle "playchess.com"]
[Source "ChessBase"]
[SourceQuality "1"]
[TimeControl "180+2"]

{[%evp 10,58,27,14,15,0,0,-1,19,0,18,7,2,5,33,33,94,-43,-35,-56,-16,-106,-107,-106,-93,-89,-80,-93,-85,-111,-108,-108,-109,-113,-106,-132,-126,-414,-397,-896,-848,-973,-982,-1062,-900,-1045,-1038,-1086,-1050,-1127,-1092]} 1. e4 {[%emt 0:00:02]} c5 {[%emt 0:00:01]} 2. Nf3 {[%emt 0:00:03]} d6 {[%emt 0:00:03]} 3. d4 {[%emt 0:00:01]} cxd4 {[%emt 0:00:01]} 4. Nxd4 {[%emt 0:00:02]} Nf6 {[%emt 0:00:00]} 5. Nc3 {[%emt 0:00:03]} a6 {[%emt 0:00:00]} 6. a3 {[%emt 0:00:08]} e5 {[%emt 0:00:04] B90: Sicilian Najdorf: Unusual White 6th moves, 6 Be3 Ng4 and 6 Be3 e5.} 7. Nf3 {[%emt 0:00:03]} Be7 {[%emt 0:00:05]} 8. Bc4 {[%emt 0:00:03] 8.Bc4 has become a bit dusty these days.} Qc7 {[%emt 0:00:12] The position is equal.} 9. Qe2 {[%emt 0:00:11]} O-O {[%emt 0:00:10]} 10. O-O {[%emt 0:00:04]} h6 {[%emt 0:00:03] [#]} 11. Be3 $146 {[%emt 0:00:10]} ({Predecessor:} 11. Rd1 Be6 12. Ba2 Nbd7 13. Nh4 Nc5 14. Nf5 Kh7 15. Qf3 Bxa2 16. Rxa2 Ne6 17. Be3 {0-1 (68) Perez Ponsa,F (2554)-Assaubayeva,B (2400) Chess.com INT 2021}) 11... b5 {[%emt 0:00:29]} (11... Be6 $5 {[%cal Re6c4]} 12. Ba2 b5 $11) 12. Bb3 {[%emt 0:00:01]} Bb7 {[%emt 0:00:03] [#]} (12... Nbd7 $14) 13. Bd2 {[%emt 0:00:34]} ({White should try} 13. Nh4 $1 $16) 13... Nbd7 $15 {[%emt 0:00:04][%cal Bb8d7,Bd7c5,Bc5a4,Ba4c3][%mdl 32]} 14. Rfe1 {[%emt 0:00:26]} Rac8 {[%emt 0:00:02]} 15. Rac1 {[%emt 0:00:03]} (15. Nh4 $11) 15... Nc5 $17 {[%emt 0:00:09]} 16. Nd5 {[%emt 0:00:29]} Nxd5 17. Bxd5 {[%emt 0:00:08]} Bxd5 {[%emt 0:00:10]} 18. exd5 {[%emt 0:00:02][%cal Of3d4]} Qb7 {[%emt 0:00:01]} 19. Red1 {[%emt 0:00:19]} Na4 {[%emt 0:00:09]} ({Don't play} 19... Qxd5 $6 20. Bxh6 Qb7 21. Bd2 $15) 20. b3 {[%emt 0:00:34] [#]} Nc3 {[%emt 0:00:02]} 21. Bxc3 {[%emt 0:00:03]} Rxc3 {[%emt 0:00:00]} 22. Rd2 {[%emt 0:00:03]} Rfc8 {[%emt 0:00:02] Black is more active.} 23. Ne1 $2 {[%emt 0:00:04][%mdl 8192] Loses the game.} (23. Rd3 $17 {keeps fighting.}) 23... Bg5 $19 {[%emt 0:00:04]} 24. Rd3 $2 {[%emt 0:00:06]} (24. Ra1 Bxd2 25. Qxd2) 24... Bxc1 {[%emt 0:00:11] Black is clearly winning.} 25. Rxc3 {[%emt 0:00:04]} Rxc3 {[%emt 0:00:01]} 26. Qd1 {[%emt 0:00:01]} Bg5 {[%emt 0:00:03]} 27. Nf3 {[%emt 0:00:02]} Rc5 {[%emt 0:00:07]} 28. Qe2 {[%emt 0:00:05]} Qxd5 {[%emt 0:00:04]} 29. h3 {[%emt 0:00:03]} e4 {[%emt 0:00:02] Weighted Error Value: White=0.73/Black=0.18 (very precise)} 0-1

[Event "Romanian Team Blitz Open 2022"]
[Site "Sebes"]
[Date "2022.12.04"]
[Round "7.13"]
[White "Szabo, Gergely-Andras-Gyula"]
[Black "Stanca, Adrian"]
[Result "1-0"]
[ECO "B30"]
[WhiteElo "2514"]
[BlackElo "2182"]
[Annotator "TA"]
[PlyCount "31"]
[EventDate "2022.12.04"]
[EventType "blitz"]
[EventCountry "ROU"]
[SourceTitle "playchess.com"]
[Source "ChessBase"]
[SourceQuality "1"]
[TimeControl "180+2"]

{[%evp 9,31,8,37,41,129,117,133,128,136,103,139,77,87,93,87,73,96,75,67,73,81,57,619,600]} 1. e4 {[%emt 0:00:02]} c5 {[%emt 0:00:01]} 2. Nf3 {[%emt 0:00:01]} Nc6 {[%emt 0:00:01]} 3. Bc4 {[%emt 0:00:02]} e6 {[%emt 0:00:04]} 4. O-O {[%emt 0:00:03]} a6 {[%emt 0:00:01]} 5. d4 {[%emt 0:00:02]} b5 {[%emt 0:00:10]} 6. d5 {[%emt 0:00:03] [#] B30: Sicilian: 2...Nc6 3 Bb5, lines without ...g6.} Nb8 $146 {[%emt 0:00:47]} (6... bxc4 $14 7. dxc6 d6) ({Predecessor:} 6... bxc4 7. dxc6 d6 8. Re1 Qc7 9. Nbd2 c3 10. bxc3 Qxc6 11. c4 e5 12. Nf1 Nf6 {1-0 (64) Yuan,Q (2373)-Sadhwani,R (2619) Chess.com INT 2022}) 7. Be2 {[%emt 0:00:05]} Nf6 {[%emt 0:00:02]} 8. dxe6 {[%emt 0:00:20] White is clearly better.} dxe6 {[%emt 0:00:14]} 9. Qxd8+ Kxd8 {[%emt 0:00:01]} 10. Rd1+ {[%emt 0:00:10]} ({White should try} 10. a4) 10... Ke8 $16 {[%emt 0:00:02]} 11. a4 $36 {[%emt 0:00:13][%mdl 2048] Keeping Black busy.} b4 {[%emt 0:00:10]} 12. Nbd2 {[%emt 0:00:06]} Bb7 {[%emt 0:00:04]} 13. e5 {[%emt 0:00:01]} Nd5 {[%emt 0:00:05]} 14. Nc4 {[%emt 0:00:05]} a5 {[%emt 0:00:20]} 15. Ng5 {[%emt 0:00:03] White has more active pieces.} Nf4 $2 {[%emt 0:00:59][%mdl 8192] [#]} 16. Bxf4 {[%emt 0:00:03] Weighted Error Value: White=0.11 (very precise) /Black=0.93} 1-0

[Event "Romanian Team Blitz Open 2022"]
[Site "Sebes"]
[Date "2022.12.04"]
[Round "7.14"]
[White "Coicev, Matei-Andrei"]
[Black "Nevednichy, Vladislav"]
[Result "0-1"]
[ECO "C01"]
[WhiteElo "2009"]
[BlackElo "2499"]
[Annotator "TA"]
[PlyCount "56"]
[EventDate "2022.12.04"]
[EventType "blitz"]
[EventCountry "ROU"]
[SourceTitle "playchess.com"]
[Source "ChessBase"]
[SourceQuality "1"]
[TimeControl "180+2"]

{[%evp 14,56,28,23,20,18,17,18,25,22,21,0,0,0,0,0,0,-9,0,-57,-24,-189,-153,-320,-285,-387,-337,-434,-309,-395,-408,-620,-600,-665,-595,-706,-472,-29985,-29986,-29985,-29986,-29993,-29989,-29994,-29995]} 1. e4 {[%emt 0:00:02]} e6 {[%emt 0:00:02]} 2. d4 {[%emt 0:00:01]} d5 {[%emt 0:00:00]} 3. exd5 {[%emt 0:03:05]} exd5 {[%emt 0:00:03]} 4. Nf3 {[%emt 0:00:00]} Nf6 {[%emt 0:00:03]} 5. Bd3 {[%emt 0:00:00]} c5 {[%emt 0:00:07][%cal Bc7c5,Bc5c4][%mdl 32]} 6. O-O {[%emt 0:00:00]} c4 {[%emt 0:00:00]} 7. Re1+ {[%emt 0:00:00]} Be7 {[%emt 0:00:02]} 8. Bf1 {[%emt 0:00:00]} O-O {[%emt 0:00:01] C01: French: Exchange Variation.} 9. b3 {[%emt 0:00:00]} cxb3 {[%emt 0:00:02]} 10. axb3 {[%emt 0:00:00]} Bg4 {[%emt 0:00:05][%cal Bc8g4,Bg4h5,Bh5g6][%mdl 32] The position is equal.} 11. h3 {[%emt 0:00:00]} Bh5 {[%emt 0:00:00] [#]} 12. Ba3 $146 {[%emt 0:00:00]} ({Predecessor:} 12. g4 Bg6 13. Ne5 Nc6 14. Nxg6 fxg6 15. Bg2 Ne4 16. Bxe4 dxe4 17. Rxe4 Bh4 18. Be3 {1-0 (31) Arias Igual,A (2279)-Arizmendi Martinez,J (2488) Toledo 2022}) 12... Bxa3 {[%emt 0:00:04]} 13. Nxa3 {[%emt 0:00:00]} Nc6 {[%emt 0:00:03]} 14. g4 {[%emt 0:00:00]} Bg6 {[%emt 0:00:01]} 15. Ne5 {[%emt 0:00:00]} Rc8 {[%emt 0:00:03][%cal Ba8c8,Bc8c6,Bc6f6,Bf6f4,Bf4d4,Bd4d2][%mdl 32]} 16. Nxc6 {[%emt 0:00:00]} ({White should try} 16. Nxg6 $11 hxg6 17. Bg2) 16... Rxc6 {[%emt 0:00:02]} 17. Bd3 $2 {[%emt 0:00:00] [#]} (17. c4 $11 {and White is okay.}) 17... a6 {[%emt 0:00:02]} 18. Qd2 $2 {[%emt 0:00:00] Loses the game.} (18. Re3 $17 {might work better.}) 18... h5 {[%emt 0:00:05]} 19. Bxg6 fxg6 {[%emt 0:00:01]} 20. f3 {[%emt 0:00:00]} Nh7 {[%emt 0:00:03]} 21. Kg2 {[%emt 0:00:36]} Rcf6 {[%emt 0:00:15]} 22. Rf1 {[%emt 0:00:00]} (22. Re3 $142 Qd6 23. Rd3) 22... Rf4 $19 {[%emt 0:00:12]} 23. Rae1 {[%emt 0:00:00]} Qf6 {[%emt 0:00:05]} 24. Qa5 {[%emt 0:00:00]} Rxd4 {[%emt 0:00:23] aiming for ...Ng5.} ({Inferior is} 24... Qxd4 25. Rd1 Qb2 26. Qxd5+ R8f7 27. Qc5 $15) 25. Qc7 {[%emt 0:00:05] [#]} (25. Nb1 $19 Qh4 26. Qc3) 25... Rd2+ {[%emt 0:00:10] Black mates.} 26. Kg1 {[%emt 0:00:01]} Ng5 {[%emt 0:00:06][%csl LRf3,LRh3]} 27. Re3 {[%emt 0:00:03]} Nxh3+ {[%emt 0:00:04]} 28. Kh1 {[%emt 0:00:01]} Qh4 {[%emt 0:00:05] Weighted Error Value: White=0.94/Black=0.22 (precise)} 0-1